fUSD/lending_fUSD_20250618
["ID","MTS","AMOUNT","RATE_DAILY","PERIOD"]
[366377356,1750219871525,-490.0,0.00016931,2]
[366377357,1750219871535,-490.0,0.00016931,2]
[366377358,1750219871546,-568.82,0.00016931,2]
[366377359,1750219871555,-490.0,0.00016931,2]
[366377360,1750219871565,-490.0,0.00016931,2]
[366377361,1750219871575,-438.25275823,0.00016931,2]
[366377362,1750219871585,-1685.96,0.00016931,2]
[366377363,1750219871594,-899.74,0.00016931,2]
[366377364,1750219871603,-490.0,0.00016931,2]
[366377365,1750219871613,-490.0,0.00016931,2]
[366377366,1750219871623,-151.0,0.00016931,2]
[366377367,1750219871632,-490.0,0.00016931,2]
[366377368,1750219871642,-490.0,0.00016931,2]
[366377369,1750219871651,-490.0,0.00016931,2]
[366377370,1750219871661,-1576.42,0.00016931,2]
[366377371,1750219871671,-502.33760652,0.00016931,2]
[366377372,1750219871681,-876.4,0.00016931,2]
[366377373,1750219871691,-608.39,0.00016931,2]
[366377374,1750219871700,-603.89,0.00016931,2]
[366377375,1750219871709,-1075.03,0.00016931,2]
[366377376,1750219871719,-490.0,0.00016931,2]
[366377377,1750219871730,-490.0,0.00016931,2]
[366377378,1750219871740,-492.5869082,0.00016931,2]
[366377379,1750219871749,-2131.18,0.00016931,2]
[366377380,1750219871759,-2448.84,0.00016931,2]
[366377381,1750219871769,-937.26,0.00016931,2]
[366377382,1750219871778,-490.0,0.00016931,2]
[366377383,1750219871788,-692.46,0.00016931,2]
[366377384,1750219871797,-490.0,0.00016931,2]
[366377385,1750219871809,-1531.94,0.00016931,2]
[366377386,1750219871819,-295.04101616,0.00016931,2]
[366377387,1750219871828,-2391.1,0.00016931,2]
[366377388,1750219871838,-468.61626455,0.00016931,2]
[366377389,1750219871848,-490.0,0.00016931,2]
[366377390,1750219871857,-499.65,0.00016931,2]
[366377391,1750219871867,-490.0,0.00016931,2]
[366377392,1750219871877,-490.0,0.00016931,2]
[366377393,1750219871886,-828.71,0.00016931,2]
[366377394,1750219871896,-490.0,0.00016931,2]
[366377395,1750219871906,-937.04,0.00016931,2]
[366377396,1750219871915,-490.0,0.00016931,2]
[366377397,1750219871925,-490.0,0.00016931,2]
[366377398,1750219871935,-545.36,0.00016931,2]
[366377399,1750219871944,-490.0,0.00016931,2]
[366377400,1750219871953,-1175.81,0.00016931,2]
[366377401,1750219871963,-1574.12,0.00016931,2]
[366377402,1750219871972,-592.69,0.00016931,2]
[366377403,1750219871981,-490.0,0.00016931,2]
[366377404,1750219871990,-2287.17,0.00016931,2]
[366377405,1750219872000,-490.0,0.00016931,2]
[366377406,1750219872009,-562.58,0.00016931,2]
[366377407,1750219872019,-490.0,0.00016931,2]
[366377408,1750219872028,-1000.0,0.00016931,2]
[366377409,1750219872038,-490.0,0.00016931,2]
[366377410,1750219872047,-548.72,0.00016931,2]
[366377411,1750219872057,-490.0,0.00016931,2]
[366377412,1750219872066,-558.0,0.00016931,2]
[366377413,1750219872076,-1259.73,0.00016931,2]
[366377414,1750219872085,-1113.8,0.00016931,2]
[366377415,1750219872094,-497.61,0.00016931,2]
[366377416,1750219872105,-1285.57,0.00016931,2]
[366377417,1750219872115,-733.75,0.00016931,2]
[366377418,1750219872124,-539.36,0.00016931,2]
[366377419,1750219872134,-490.0,0.00016931,2]
[366377420,1750219872143,-1918.62,0.00016931,2]
[366377421,1750219872153,-583.85,0.00016931,2]
[366377422,1750219872162,-1665.59,0.00016931,2]
[366377423,1750219872171,-1623.02,0.00016931,2]
[366377424,1750219872181,-151.0,0.00016931,2]
[366377425,1750219872190,-490.0,0.00016931,2]
[366377426,1750219872199,-490.0,0.00016931,2]
[366377427,1750219872209,-1000.0,0.00016931,2]
[366377428,1750219872219,-1000.0,0.00016931,2]
[366377429,1750219872229,-1000.0,0.00016931,2]
[366377430,1750219872238,-1000.0,0.00016931,2]
[366377431,1750219872247,-501.69,0.00016931,2]
[366377432,1750219872257,-1000.0,0.00016931,2]
[366377433,1750219872267,-1335.43,0.00016931,2]
[366377434,1750219872277,-1000.0,0.00016931,2]
[366377435,1750219872287,-1000.0,0.00016931,2]
[366377436,1750219872297,-1000.0,0.00016931,2]
[366377437,1750219872307,-553.43358958,0.00016931,2]
[366377438,1750219872316,-1000.0,0.00016931,2]
[366377439,1750219872326,-1000.0,0.00016931,2]
[366377440,1750219872336,-316.85789211,0.00016931,2]
[366377441,1750219872346,-667.17,0.00016931,2]
[366377442,1750219872356,-636.2,0.00016931,2]
[366377443,1750219872366,-490.0,0.00016931,2]
[366377444,1750219872375,-490.0,0.00016931,2]
[366377445,1750219872385,-632.5,0.00016931,2]
[366377446,1750219872395,-490.0,0.00016931,2]
[366377447,1750219872405,-490.0,0.00016931,2]
[366377448,1750219872414,-864.12,0.00016931,2]
[366377449,1750219872424,-1981.22,0.00016931,2]
[366377450,1750219872433,-1380.2,0.00016931,2]
[366377451,1750219872442,-1373.66,0.00016931,2]
[366377452,1750219872453,-490.0,0.00016931,2]
[366377453,1750219872463,-151.0,0.00016931,2]
[366377454,1750219872473,-1984.06,0.00016931,2]
[366377455,1750219872482,-1006.32,0.00016931,2]
[366377456,1750219872492,-490.0,0.00016931,2]
[366377457,1750219872501,-3129.03,0.00016931,2]
[366377458,1750219872511,-151.0,0.00016931,2]
[366377459,1750219872521,-1983.52,0.00016931,2]
[366377460,1750219872531,-1157.3,0.00016931,2]
[366377461,1750219872540,-1374.35,0.00016931,2]
[366377462,1750219872549,-1095.15,0.00016931,2]
[366377463,1750219872559,-803.86,0.00016931,2]
[366377464,1750219872569,-6170.72,0.00016931,2]
[366377465,1750219872578,-608.18,0.00016931,2]
[366377466,1750219872588,-151.0,0.00016931,2]
[366377467,1750219872598,-490.0,0.00016931,2]
[366377468,1750219872608,-490.0,0.00016931,2]
[366377469,1750219872618,-490.0,0.00016931,2]
[366377470,1750219872630,-490.0,0.00016931,2]
[366377471,1750219872646,-901.46,0.00016931,2]
[366377472,1750219872658,-1985.94,0.00016931,2]
[366377473,1750219872668,-467.93602162,0.00016931,2]
[366377474,1750219872678,-216.44078432,0.00016931,2]
[366377475,1750219872687,-2612.99,0.00016931,2]
[366377476,1750219872697,-151.0,0.00016931,2]
[366377477,1750219872707,-590.95,0.00016931,2]
[366377478,1750219872717,-971.5,0.00016931,2]
[366377479,1750219872729,-781.57,0.00016931,2]
[366377480,1750219872740,-1003.97,0.00016931,2]
[366377481,1750219872750,-1259.29,0.00016931,2]
[366377482,1750219872759,-1565.28,0.00016931,2]
[366377483,1750219872771,-7839.6,0.00016931,2]
[366377484,1750219872780,-490.0,0.00016931,2]
[366377485,1750219872789,-8094.47,0.00016931,2]
[366377486,1750219872799,-1797.3,0.00016931,2]
[366377487,1750219872808,-490.0,0.00016931,2]
[366377488,1750219872818,-1149.99,0.00016931,2]
[366377489,1750219872828,-1229.7,0.00016931,2]
[366377490,1750219872837,-490.0,0.00016931,2]
[366377491,1750219872847,-490.0,0.00016931,2]
[366377492,1750219872856,-547.6,0.00016931,2]
[366377493,1750219872866,-1721.15,0.00016931,2]
[366377494,1750219872876,-3599.28,0.00016931,2]
[366377495,1750219872886,-3344.89,0.00016931,2]
[366377496,1750219872895,-1596.52,0.00016931,2]
[366377497,1750219872905,-490.0,0.00016931,2]
[366377498,1750219872915,-4323.1,0.00016931,2]
[366377499,1750219872924,-490.0,0.00016931,2]
[366377500,1750219872934,-674.2,0.00016931,2]
[366377501,1750219872944,-1267.05,0.00016931,2]
[366377502,1750219872954,-490.0,0.00016931,2]
[366377503,1750219872963,-6809.04,0.00016931,2]
[366377504,1750219872972,-490.0,0.00016931,2]
[366377505,1750219872982,-4687.22,0.00016931,2]
[366377506,1750219872992,-1114.15,0.00016931,2]
[366377507,1750219873002,-404.49515166,0.00016931,2]
[366377508,1750219873011,-1254.49,0.00016931,2]
[366377509,1750219873021,-490.0,0.00016931,2]
[366377510,1750219873031,-508.82,0.00016931,2]
[366377511,1750219873041,-7960.2,0.00016931,2]
[366377512,1750219873051,-490.0,0.00016931,2]
[366377513,1750219873061,-490.0,0.00016931,2]
[366377514,1750219873071,-2327.57,0.00016931,2]
[366377515,1750219873081,-490.0,0.00016931,2]
[366377516,1750219873091,-502.40313905,0.00016931,2]
[366377517,1750219873101,-490.0,0.00016931,2]
[366377518,1750219873112,-14767.55,0.00016931,2]
[366377519,1750219873121,-490.0,0.00016931,2]
[366377520,1750219873132,-846.08,0.00016931,2]
[366377521,1750219873141,-510.77,0.00016931,2]
[366377522,1750219873151,-1985.67,0.00016931,2]
[366377523,1750219873161,-490.0,0.00016931,2]
[366377524,1750219873171,-1192.34,0.00016931,2]
[366377525,1750219873180,-490.0,0.00016931,2]
[366377526,1750219873191,-913.57,0.00016931,2]
[366377527,1750219873201,-490.0,0.00016931,2]
[366377528,1750219873210,-3262.04,0.00016931,2]
[366377529,1750219873220,-1264.82,0.00016931,2]
[366377530,1750219873230,-526.27,0.00016931,2]
[366377531,1750219873239,-490.0,0.00016931,2]
[366377532,1750219873249,-2645.85,0.00016931,2]
[366377533,1750219873259,-521.37,0.00016931,2]
[366377534,1750219873269,-490.0,0.00016931,2]
[366377535,1750219873279,-490.0,0.00016931,2]
[366377536,1750219873289,-490.0,0.00016931,2]
[366377537,1750219873299,-2046.45,0.00016931,2]
[366377538,1750219873309,-635.0,0.00016931,2]
[366377539,1750219873319,-1845.32,0.00016931,2]
[366377540,1750219873330,-4271.2,0.00016931,2]
[366377541,1750219873343,-490.0,0.00016931,2]
[366377542,1750219873355,-1796.39,0.00016931,2]
[366377543,1750219873365,-490.0,0.00016931,2]
[366377544,1750219873375,-1189.87,0.00016931,2]
[366377545,1750219873385,-1231.43,0.00016931,2]
[366377546,1750219873394,-1577.26,0.00016931,2]
[366377547,1750219873404,-2605.35,0.00016931,2]
[366377548,1750219873413,-12561.35,0.00016931,2]
[366377549,1750219873424,-6591.33,0.00016931,2]
[366377550,1750219873433,-1590.95,0.00016931,2]
[366377551,1750219873443,-490.0,0.00016931,2]
[366377552,1750219873453,-490.0,0.00016931,2]
[366377553,1750219873463,-1237.3,0.00016931,2]
[366377554,1750219873473,-490.0,0.00016931,2]
[366377555,1750219873482,-490.0,0.00016931,2]
[366377556,1750219873492,-490.0,0.00016931,2]
[366377557,1750219873502,-2778.05,0.00016931,2]
[366377558,1750219873511,-490.0,0.00016931,2]
[366377559,1750219873521,-151.0,0.00016931,2]
[366377560,1750219873532,-7744.45,0.00016931,2]
[366377561,1750219873542,-238.758746,0.00016931,2]
[366377562,1750219873551,-539.31,0.00016931,2]
[366377563,1750219873561,-790.46,0.00016931,2]
[366377564,1750219873571,-688.72,0.00016931,2]
[366377565,1750219873581,-828.06,0.00016931,2]
[366377566,1750219873776,-1760.37,0.00016931,2]
[366377567,1750219873795,-3335.04,0.00016931,2]
[366377568,1750219873818,-151.0,0.00016931,2]
[366377569,1750219873828,-151.0,0.00016931,2]
[366377570,1750219873838,-300.0,0.00016931,2]
[366377571,1750219873848,-490.0,0.00016931,2]
[366377572,1750219873857,-1788.15,0.00016931,2]
[366377573,1750219873868,-2228.5,0.00016931,2]
[366377574,1750219873878,-650.66,0.00016931,2]
[366377575,1750219873887,-838.46,0.00016931,2]
[366377576,1750219873896,-710.93,0.00016931,2]
[366377577,1750219873906,-2783.84,0.00016931,2]
[366377578,1750219873917,-490.0,0.00016931,2]
[366377579,1750219873926,-3285.51,0.00016931,2]
[366377580,1750219873936,-2192.48,0.00016931,2]
[366377581,1750219873945,-490.0,0.00016931,2]
[366377582,1750219873955,-490.0,0.00016931,2]
[366377583,1750219873964,-1008.96,0.00016931,2]
[366377584,1750219873974,-8350.55,0.00016931,2]
[366377585,1750219873983,-490.0,0.00016931,2]
[366377586,1750219873993,-1067.17,0.00016931,2]
[366377587,1750219874003,-1740.71,0.00016931,2]
[366377588,1750219874012,-1337.32,0.00016931,2]
[366377589,1750219874021,-528.04,0.00016931,2]
[366377590,1750219874031,-2430.91,0.00016931,2]
[366377591,1750219874041,-602.6,0.00016931,2]
[366377592,1750219874050,-4585.9,0.00016931,2]
[366377593,1750219874060,-490.0,0.00016931,2]
[366377594,1750219874069,-8654.46,0.00016931,2]
[366377595,1750219874080,-490.0,0.00016931,2]
[366377596,1750219874090,-490.0,0.00016931,2]
[366377597,1750219874100,-1844.12,0.00016931,2]
[366377598,1750219874110,-891.56,0.00016931,2]
[366377599,1750219874120,-490.0,0.00016931,2]
[366377600,1750219874130,-490.0,0.00016931,2]
[366377601,1750219874139,-3265.35,0.00016931,2]
[366377602,1750219874150,-1404.52,0.00016931,2]
[366377603,1750219874159,-1271.95,0.00016931,2]
[366377604,1750219874169,-490.0,0.00016931,2]
[366377605,1750219874179,-490.0,0.00016931,2]
[366377606,1750219874189,-2923.4,0.00016931,2]
[366377607,1750219874199,-490.0,0.00016931,2]
[366377608,1750219874209,-151.0,0.00016931,2]
[366377609,1750219874218,-644.24,0.00016931,2]
[366377610,1750219874228,-217.417248,0.00016931,2]
[366377611,1750219874238,-6313.53,0.00016931,2]
[366377612,1750219874248,-446.48990143,0.00016931,2]
[366377613,1750219874258,-490.0,0.00016931,2]
[366377614,1750219874267,-490.0,0.00016931,2]
[366377615,1750219874278,-1057.44,0.00016931,2]
[366377616,1750219874287,-490.0,0.00016931,2]
[366377617,1750219874297,-749.85,0.00016931,2]
[366377618,1750219874306,-490.0,0.00016931,2]
[366377619,1750219874316,-1753.39,0.00016931,2]
[366377620,1750219874326,-1779.31,0.00016931,2]
[366377621,1750219874336,-1405.72,0.00016931,2]
[366377622,1750219874346,-1790.04,0.00016931,2]
[366377623,1750219874355,-490.0,0.00016931,2]
[366377624,1750219874365,-673.59,0.00016931,2]
[366377625,1750219874376,-2342.51,0.00016931,2]
[366377626,1750219874385,-151.0,0.00016931,2]
[366377627,1750219874395,-20939.69,0.00016931,2]
[366377628,1750219874405,-151.0,0.00016931,2]
[366377629,1750219874415,-700.13,0.00016931,2]
[366377630,1750219874425,-151.0,0.00016931,2]
[366377631,1750219874434,-1153.85,0.00016931,2]
[366377632,1750219874445,-2906.44,0.00016931,2]
[366377633,1750219874454,-1102.0,0.00016931,2]
[366377634,1750219874466,-490.0,0.00016931,2]
[366377635,1750219874476,-894.21,0.00016931,2]
[366377636,1750219874486,-628.4,0.00016931,2]
[366377637,1750219874496,-490.0,0.00016931,2]
[366377638,1750219874505,-1824.79,0.00016931,2]
[366377639,1750219874515,-490.0,0.00016931,2]
[366377640,1750219874525,-490.0,0.00016931,2]
[366377641,1750219874535,-2447.95,0.00016931,2]
[366377642,1750219874544,-769.0,0.00016931,2]
[366377643,1750219874554,-490.0,0.00016931,2]
[366377644,1750219874564,-1865.66,0.00016931,2]
[366377645,1750219874573,-724.48,0.00016931,2]
[366377646,1750219874584,-4102.01,0.00016931,2]
[366377647,1750219874593,-176.387606,0.00016931,2]
[366377648,1750219874603,-1244.89,0.00016931,2]
[366377649,1750219874613,-490.0,0.00016931,2]
[366377650,1750219874623,-490.0,0.00016931,2]
[366377651,1750219874632,-490.0,0.00016931,2]
[366377652,1750219874643,-490.0,0.00016931,2]
[366377653,1750219874652,-243.874976,0.00016931,2]
[366377654,1750219874662,-243.874976,0.00016931,2]
[366377655,1750219874671,-490.0,0.00016931,2]
[366377656,1750219874681,-1111.32,0.00016931,2]
[366377657,1750219874691,-490.0,0.00016931,2]
[366377658,1750219874701,-243.874976,0.00016931,2]
[366377659,1750219874710,-945.47,0.00016931,2]
[366377660,1750219874720,-243.874976,0.00016931,2]
[366377661,1750219874733,-963.84,0.00016931,2]
[366377662,1750219874743,-490.0,0.00016931,2]
[366377663,1750219874752,-490.0,0.00016931,2]
[366377664,1750219874762,-2389.14,0.00016931,2]
[366377665,1750219874771,-490.0,0.00016931,2]
[366377666,1750219874780,-753.17,0.00016931,2]
[366377667,1750219874790,-3646.98,0.00016931,2]
[366377668,1750219874799,-735.15,0.00016931,2]
[366377669,1750219874810,-615.6,0.00016931,2]
[366377670,1750219874820,-965.28,0.00016931,2]
[366377671,1750219874829,-490.0,0.00016931,2]
[366377672,1750219874839,-151.0,0.00016931,2]
[366377673,1750219874848,-490.0,0.00016931,2]
[366377674,1750219874858,-152.818703,0.00016931,2]
[366377675,1750219874867,-3311.56,0.00016931,2]
[366377676,1750219874877,-617.04,0.00016931,2]
[366377677,1750219874886,-1297.48,0.00016931,2]
[366377678,1750219874896,-490.0,0.00016931,2]
[366377679,1750219874906,-490.0,0.00016931,2]
[366377680,1750219874916,-490.0,0.00016931,2]
[366377681,1750219874925,-1267.09,0.00016931,2]
[366377682,1750219874934,-585.55964545,0.00016931,2]
[366377683,1750219874944,-9958.89,0.00016931,2]
[366377684,1750219874954,-3255.24,0.00016931,2]
[366377685,1750219874964,-466.37814898,0.00016931,2]
[366377686,1750219874973,-559.89,0.00016931,2]
[366377687,1750219874983,-1094.86,0.00016931,2]
[366377688,1750219874993,-7718.18,0.00016931,2]
[366377689,1750219875002,-861.62,0.00016931,2]
[366377690,1750219875013,-490.0,0.00016931,2]
[366377691,1750219875022,-561.79,0.00016931,2]
[366377692,1750219875032,-961.69,0.00016931,2]
[366377693,1750219875042,-573.65,0.00016931,2]
[366377694,1750219875051,-490.0,0.00016931,2]
[366377695,1750219875061,-1128.41,0.00016931,2]
[366377696,1750219875071,-2022.03,0.00016931,2]
[366377697,1750219875080,-843.56,0.00016931,2]
[366377698,1750219875089,-490.0,0.00016931,2]
[366377699,1750219875099,-490.0,0.00016931,2]
[366377700,1750219875108,-490.0,0.00016931,2]
[366377701,1750219875118,-7074.81,0.00016931,2]
[366377702,1750219875127,-490.0,0.00016931,2]
[366377703,1750219875136,-3915.26,0.00016931,2]
[366377704,1750219875146,-490.0,0.00016931,2]
[366377705,1750219875156,-9887.09,0.00016931,2]
[366377706,1750219875166,-490.0,0.00016931,2]
[366377707,1750219875176,-1244.61,0.00016931,2]
[366377708,1750219875186,-490.0,0.00016931,2]
[366377709,1750219875195,-1468.67,0.00016931,2]
[366377710,1750219875204,-1915.88,0.00016931,2]
[366377711,1750219875214,-213.845425,0.00016931,2]
[366377712,1750219875223,-490.0,0.00016931,2]
[366377713,1750219875233,-213.845425,0.00016931,2]
[366377714,1750219875243,-1227.63,0.00016931,2]
[366377715,1750219875253,-845.84,0.00016931,2]
[366377716,1750219875263,-5282.26,0.00016931,2]
[366377717,1750219875273,-1386.4,0.00016931,2]
[366377718,1750219875283,-1498.41,0.00016931,2]
[366377719,1750219875294,-213.845425,0.00016931,2]
[366377720,1750219875304,-908.02,0.00016931,2]
[366377721,1750219875313,-213.845425,0.00016931,2]
[366377722,1750219875323,-552.49,0.00016931,2]
[366377723,1750219875333,-4659.1,0.00016931,2]
[366377724,1750219875343,-581.61,0.00016931,2]
[366377725,1750219875353,-602.72,0.00016931,2]
[366377726,1750219875364,-6594.04,0.00016931,2]
[366377727,1750219875374,-1996.36,0.00016931,2]
[366377728,1750219875384,-1303.79,0.00016931,2]
[366377729,1750219875393,-1311.32,0.00016931,2]
[366377730,1750219875403,-490.0,0.00016931,2]
[366377731,1750219875414,-1185.26,0.00016931,2]
[366377732,1750219875424,-490.0,0.00016931,2]
[366377733,1750219875434,-490.0,0.00016931,2]
[366377734,1750219875445,-4500.54,0.00016931,2]
[366377735,1750219875455,-2411.47,0.00016931,2]
[366377736,1750219875464,-1683.32,0.00016931,2]
[366377737,1750219875474,-987.88,0.00016931,2]
[366377738,1750219875485,-490.0,0.00016931,2]
[366377739,1750219875495,-796.03,0.00016931,2]
[366377740,1750219875504,-1694.12,0.00016931,2]
[366377741,1750219875515,-605.97,0.00016931,2]
[366377742,1750219875525,-1349.62,0.00016931,2]
[366377743,1750219875536,-490.0,0.00016931,2]
[366377744,1750219875546,-21508.69,0.00016931,2]
[366377745,1750219875557,-2799.0,0.00016931,2]
[366377746,1750219875567,-2211.02,0.00016931,2]
[366377747,1750219875577,-663.82,0.00016931,2]
[366377748,1750219875587,-2311.17,0.00016931,2]
[366377749,1750219875596,-3130.75,0.00016931,2]
[366377750,1750219875607,-12863.733186,0.00016931,2]
[366377751,1750219875617,-490.0,0.00016931,2]
[366377752,1750219875626,-1760.56,0.00016931,2]
[366377753,1750219875636,-1369.73,0.00016931,2]
[366377754,1750219875646,-490.0,0.00016931,2]
[366377755,1750219875656,-490.0,0.00016931,2]
[366377756,1750219875666,-490.0,0.00016931,2]
[366377757,1750219875676,-913.62,0.00016931,2]
[366377758,1750219875687,-490.0,0.00016931,2]
[366377759,1750219875696,-1256.07,0.00016931,2]
[366377760,1750219875706,-1767.83,0.00016931,2]
[366377761,1750219875716,-579.13,0.00016931,2]
[366377762,1750219875726,-490.0,0.00016931,2]
[366377763,1750219875740,-490.0,0.00016931,2]
[366377764,1750219875750,-160.935214,0.00016931,2]
[366377765,1750219875761,-1282.35,0.00016931,2]
[366377766,1750219875771,-490.0,0.00016931,2]
[366377767,1750219875781,-151.0,0.00016931,2]
[366377768,1750219875791,-160.468182,0.00016931,2]
[366377769,1750219875801,-1591.18,0.00016931,2]
[366377770,1750219875812,-1144.81,0.00016931,2]
[366377771,1750219875823,-1000.0,0.00016937,2]
[366377772,1750219875833,-1000.0,0.00016937,2]
[366377773,1750219875842,-1000.0,0.00016937,2]
[366377774,1750219875852,-1000.0,0.00016937,2]
[366377775,1750219875862,-1000.0,0.00016937,2]
[366377776,1750219875872,-1000.0,0.00016937,2]
[366377777,1750219875882,-1000.0,0.00016937,2]
[366377778,1750219875892,-1000.0,0.00016937,2]
[366377779,1750219875901,-1000.0,0.00016937,2]
[366377780,1750219875911,-1000.0,0.00016937,2]
[366377781,1750219875922,-215.95223872,0.00016941,2]
[366377782,1750219875931,-4349.92868488,0.00016953,2]
[366377783,1750219875941,-151.0,0.00016966,2]
[366377784,1750219875951,-1247.01674426,0.00016969,2]
[366377785,1750219875960,-601.59863212,0.0001697,2]
[366377786,1750219875970,-350.0,0.00016973,2]
[366377787,1750219875979,-531.0340463,0.00016976,2]
[366377788,1750219875991,-1582.5,0.00016989,2]
[366377789,1750219876000,-1582.5,0.00016989,2]
[366377790,1750219876012,-1582.5,0.00016989,2]
[366377791,1750219876022,-1582.5,0.00016989,2]
[366377792,1750219876032,-1582.61654069,0.00016989,2]
[366377793,1750219876042,-3107.14,0.00016989,2]
[366377794,1750219876052,-9966.91980868,0.0001699,2]
[366377795,1750219876062,-151.0,0.0001699,2]
[366377796,1750219876071,-7032.54205171,0.00016999,2]
[366377797,1750219876082,-1000.0,0.00016999,2]
[366377798,1750219876092,-209.5,0.00017,2]
[366377799,1750219876102,-209.5,0.00017,2]
[366377800,1750219876111,-15714.6589409,0.00017006,2]
[366377801,1750219876750,-4879.73982471,0.00017006,2]
[366377802,1750219876764,-674.21531975,0.00017006,2]
[366377803,1750219876780,-3454.63046133,0.00017006,2]
[366377804,1750219877407,-160.6579939,0.00016438,2]
[366377805,1750219877417,-366.2420061,0.00016438,2]
[366377806,1750219877466,-18406.7279939,0.00016438,2]
[366377807,1750219877476,-1535.52,0.00016438,2]
[366377808,1750219877485,-490.0,0.00016438,2]
[366377809,1750219877495,-490.0,0.00016438,2]
[366377810,1750219877504,-490.0,0.00016438,2]
[366377811,1750219877514,-490.0,0.00016438,2]
[366377812,1750219877523,-490.0,0.00016438,2]
[366377813,1750219877532,-490.0,0.00016438,2]
[366377814,1750219877541,-490.0,0.00016438,2]
[366377815,1750219877551,-14302.22028802,0.00016602,2]
[366377816,1750219877577,-378.19882696,0.00016602,2]
[366377817,1750219877593,-2578.698631,0.00016602,2]
[366377818,1750219878095,-202.0,0.00014341,2]
[366377819,1750219878105,-490.0,0.00016438,2]
[366377820,1750219878115,-490.0,0.00016438,2]
[366377821,1750219878124,-854.0,0.00016504,2]
[366377822,1750219878135,-1513.85225402,0.00016602,2]
[366377823,1750219878144,-1535.52,0.00016602,2]
[366377824,1750219878154,-490.0,0.00016602,2]
[366377825,1750219878164,-490.0,0.00016602,2]
[366377826,1750219878173,-490.0,0.00016602,2]
[366377827,1750219878183,-490.0,0.00016602,2]
[366377828,1750219878193,-490.0,0.00016602,2]
[366377829,1750219878203,-490.0,0.00016602,2]
[366377830,1750219878213,-490.0,0.00016602,2]
[366377831,1750219878223,-490.0,0.00016602,2]
[366377832,1750219878233,-490.0,0.00016602,2]
[366377833,1750219878243,-1535.52,0.00016767,2]
[366377834,1750219878253,-18772.97,0.00016767,2]
[366377835,1750219878263,-490.0,0.00016767,2]
[366377836,1750219878273,-490.0,0.00016767,2]
[366377837,1750219878283,-490.0,0.00016767,2]
[366377838,1750219878292,-490.0,0.00016767,2]
[366377839,1750219878303,-490.0,0.00016767,2]
[366377840,1750219878313,-393.77,0.00016767,2]
[366377841,1750219878323,-490.0,0.00016767,2]
[366377842,1750219878334,-1535.52,0.00016931,2]
[366377843,1750219878344,-18772.97,0.00016931,2]
[366377844,1750219878353,-490.0,0.00016931,2]
[366377845,1750219878364,-490.0,0.00016931,2]
[366377846,1750219878375,-490.0,0.00016931,2]
[366377847,1750219878386,-124504.48284321,0.00017006,2]
[366377848,1750219878396,-4977.9653607,0.00017006,2]
[366377849,1750219878406,-1000.0,0.00017008,2]
[366377850,1750219878416,-151.0,0.00017009,2]
[366377851,1750219878425,-151.0,0.00017009,2]
[366377852,1750219878435,-151.0,0.00017009,2]
[366377853,1750219878445,-151.0,0.00017009,2]
[366377854,1750219878455,-151.0,0.00017009,2]
[366377855,1750219878465,-150.0,0.00017013,2]